fUST/lending_fUST_20240828
["ID","MTS","AMOUNT","RATE_DAILY","PERIOD"]
[336432052,1724823059310,-409.99908534,0.00013698,2]
[336432053,1724823059320,-1879.62,0.00013698,2]
[336432054,1724823059330,-879.97,0.00013698,2]
[336432055,1724823059339,-997.99008172,0.00013699,2]
[336432056,1724823059608,-500.0,0.00010958,2]
[336432057,1724823059617,-500.0,0.00010958,2]
[336432058,1724823059626,-500.0,0.00011232,2]
[336432059,1724823059635,-501.60813842,0.00011232,2]
[336432060,1724823059645,-500.0,0.00011506,2]
[336432061,1724823059654,-500.0,0.0001178,2]
[336432062,1724823059663,-500.0,0.00012054,2]
[336432063,1724823059672,-500.0,0.00012328,2]
[336432064,1724823059681,-500.0,0.00012602,2]
[336432065,1724823059691,-716.58,0.00012876,2]
[336432066,1724823059700,-424.50923678,0.00012991,2]
[336432067,1724823059709,-2597.51595188,0.00012999,2]
[336432068,1724823059719,-716.58,0.0001315,2]
[336432069,1724823059728,-716.58,0.00013424,2]
[336432070,1724823059738,-716.58,0.00013698,2]
[336432071,1724823059747,-2002.00991828,0.00013699,2]
[336432072,1724823059756,-573.440377,0.00013699,2]
[336432073,1724823059765,-500.0,0.00013699,2]
[336432074,1724823059775,-500.0,0.00013699,2]
[336432075,1724823059783,-500.0,0.00013699,2]
[336432076,1724823059794,-500.0,0.00013699,2]
[336432077,1724823059804,-500.0,0.00013699,2]
[336432078,1724823059814,-500.0,0.00013699,2]
[336432079,1724823059823,-500.0,0.00013699,2]
[336432080,1724823059832,-500.0,0.00013699,2]
[336432081,1724823059841,-500.0,0.00013699,2]
[336432082,1724823059855,-500.0,0.00013699,2]
[336432083,1724823059864,-500.0,0.00013699,2]
[336432084,1724823059874,-500.0,0.00013699,2]
[336432085,1724823059884,-500.0,0.00013699,2]
[336432086,1724823059893,-500.0,0.00013699,2]
[336432087,1724823059903,-500.0,0.00013699,2]
[336432088,1724823059912,-500.0,0.00013699,2]
[336432089,1724823059922,-500.0,0.00013699,2]
[336432090,1724823059931,-500.0,0.00013699,2]
[336432091,1724823059941,-500.0,0.00013699,2]
[336432092,1724823059950,-500.0,0.00013699,2]
[336432093,1724823059959,-500.0,0.00013699,2]
[336432094,1724823059968,-500.0,0.00013699,2]
[336432095,1724823059977,-500.0,0.00013699,2]
[336432096,1724823059987,-500.0,0.00013699,2]
[336432097,1724823059996,-500.0,0.00013699,2]
[336432098,1724823060005,-500.0,0.00013699,2]
[336432099,1724823060015,-500.0,0.00013699,2]
[336432100,1724823060024,-500.0,0.00013699,2]
[336432101,1724823060034,-500.0,0.00013699,2]
[336432102,1724823060055,-500.0,0.00013699,2]
[336432103,1724823060065,-500.0,0.00013699,2]
[336432104,1724823060075,-500.0,0.00013699,2]
[336432105,1724823060085,-500.0,0.00013699,2]
[336432106,1724823060095,-500.0,0.00013699,2]
[336432107,1724823060104,-500.0,0.00013699,2]
[336432108,1724823060114,-500.0,0.00013699,2]
[336432109,1724823060124,-500.0,0.00013699,2]
[336432110,1724823060134,-500.0,0.00013699,2]
[336432111,1724823060144,-500.0,0.00013699,2]
[336432112,1724823060153,-500.0,0.00013699,2]
[336432113,1724823060163,-500.0,0.00013699,2]
[336432114,1724823060172,-500.0,0.00013699,2]
[336432115,1724823060181,-500.0,0.00013699,2]
[336432116,1724823060191,-500.0,0.00013699,2]
[336432117,1724823060200,-500.0,0.00013699,2]
[336432118,1724823060211,-500.0,0.00013699,2]
[336432119,1724823060221,-459.96265888,0.00013699,2]
[336432120,1724823060231,-500.0,0.00013699,2]
[336432121,1724823060240,-500.0,0.00013699,2]
[336432122,1724823060250,-500.0,0.00013699,2]
[336432123,1724823060261,-500.0,0.00013699,2]
[336432124,1724823060271,-500.0,0.00013699,2]
[336432125,1724823060281,-500.0,0.00013699,2]
[336432126,1724823060291,-157.5507834,0.00013946,2]
[336432127,1724823060302,-7985.02986348,0.00013971,2]
[336432128,1724823060312,-2432.05307188,0.00013971,2]
[336432129,1724823060336,-5552.9767916,0.00013971,2]
[336432130,1724823060346,-483.27,0.00013972,2]
[336432131,1724823060356,-500.0,0.00013972,2]
[336432132,1724823060365,-500.0,0.00013972,2]
[336432133,1724823060375,-500.0,0.00013972,2]
[336432134,1724823060386,-500.0,0.00013972,2]
[336432135,1724823060396,-500.0,0.00013972,2]
[336432136,1724823060407,-484.02,0.00013972,2]
[336432137,1724823060416,-500.0,0.00013972,2]
[336432138,1724823060426,-500.0,0.00013972,2]
[336432139,1724823060436,-500.0,0.00013972,2]
[336432140,1724823060446,-1073.08,0.00013972,2]
[336432141,1724823060456,-500.0,0.00013972,2]
[336432142,1724823060466,-500.0,0.00013972,2]
[336432143,1724823060477,-976.28,0.00013972,2]
[336432144,1724823060486,-681.01,0.00013972,2]
[336432145,1724823060497,-6351.33,0.00013972,2]
[336432146,1724823060507,-1199.56,0.00013972,2]
[336432147,1724823060516,-500.0,0.00013972,2]
[336432148,1724823060526,-640.43,0.00013972,2]
[336432149,1724823060536,-2948.06,0.00013972,2]
[336432150,1724823060547,-333.67,0.00013972,2]
[336432151,1724823060557,-500.0,0.00013972,2]
[336432152,1724823060567,-500.0,0.00013972,2]
[336432153,1724823060577,-1275.5,0.00013972,2]
[336432154,1724823060587,-542.67,0.00013972,2]
[336432155,1724823060597,-172.4124918,0.00013972,2]
[336432156,1724823060607,-500.0,0.00013972,2]
[336432157,1724823060616,-168.85740919,0.00013972,2]
[336432158,1724823060626,-2577.61,0.00013972,2]
[336432159,1724823060636,-500.0,0.00013972,2]
[336432160,1724823060645,-1066.37,0.00013972,2]
[336432161,1724823060655,-1879.62,0.00013972,2]
[336432162,1724823060665,-879.97,0.00013972,2]
[336432163,1724823060675,-716.58,0.00013972,2]
[336432164,1724823060684,-324.0,0.00014,2]
[336432165,1724823060695,-236.11350432,0.00014025,2]
[336432166,1724823060705,-159.15,0.00014246,2]
[336432167,1724823060715,-500.0,0.00014246,2]
[336432168,1724823060726,-500.0,0.00014246,2]
[336432169,1724823060736,-500.0,0.00014246,2]
[336432170,1724823060746,-500.0,0.00014246,2]
[336432171,1724823060756,-463.42477535,0.00014246,2]
[336432172,1724823060766,-243.73,0.00014246,2]
[336432173,1724823060776,-617.34,0.00014246,2]
[336432174,1724823060785,-1073.08,0.00014246,2]
[336432175,1724823060795,-500.0,0.00014246,2]
[336432176,1724823060805,-500.0,0.00014246,2]
[336432177,1724823060815,-976.28,0.00014246,2]
[336432178,1724823060825,-681.01,0.00014246,2]
[336432179,1724823060835,-6351.33,0.00014246,2]
[336432180,1724823060846,-1199.56,0.00014246,2]
[336432181,1724823060858,-382.87,0.00014246,2]
[336432182,1724823060868,-640.43,0.00014246,2]
[336432183,1724823060878,-2948.06,0.00014246,2]
[336432184,1724823060888,-500.0,0.00014246,2]
[336432185,1724823060899,-312.7,0.00014246,2]
[336432186,1724823060908,-1275.5,0.00014246,2]
[336432187,1724823060918,-542.67,0.00014246,2]
[336432188,1724823060930,-630.52,0.00014246,2]
[336432189,1724823060940,-2577.61,0.00014246,2]
[336432190,1724823060950,-500.0,0.00014246,2]
[336432191,1724823060960,-1066.37,0.00014246,2]
[336432192,1724823060972,-1879.62,0.00014246,2]
[336432193,1724823060982,-879.97,0.00014246,2]
[336432194,1724823060992,-716.58,0.00014246,2]
[336432195,1724823061001,-750.0,0.00014247,2]
[336432196,1724823061011,-500.0,0.0001452,2]
[336432197,1724823061020,-155.0,0.0001452,2]
[336432198,1724823061030,-500.0,0.0001452,2]
[336432199,1724823061039,-500.0,0.0001452,2]
[336432200,1724823061049,-1073.08,0.0001452,2]
[336432201,1724823061058,-500.0,0.0001452,2]
[336432202,1724823061067,-500.0,0.0001452,2]
[336432203,1724823061076,-976.28,0.0001452,2]
[336432204,1724823061086,-681.01,0.0001452,2]
[336432205,1724823061096,-6351.33,0.0001452,2]
[336432206,1724823061105,-1199.56,0.0001452,2]
[336432207,1724823061116,-640.43,0.0001452,2]
[336432208,1724823061126,-2948.06,0.0001452,2]
[336432209,1724823061136,-500.0,0.0001452,2]
[336432210,1724823061145,-1275.5,0.0001452,2]
[336432211,1724823061155,-542.67,0.0001452,2]
[336432212,1724823061164,-2577.61,0.0001452,2]
[336432213,1724823061174,-500.0,0.0001452,2]
[336432214,1724823061183,-1066.37,0.0001452,2]
[336432215,1724823061193,-1879.62,0.0001452,2]
[336432216,1724823061202,-879.97,0.0001452,2]
[336432217,1724823061369,-500.0,0.00014794,2]
[336432218,1724823061379,-500.0,0.00014794,2]
[336432219,1724823061389,-500.0,0.00014794,2]
[336432220,1724823061398,-1073.08,0.00014794,2]
[336432221,1724823061408,-420.55,0.00014794,2]
[336432222,1724823061418,-500.0,0.00014794,2]
[336432223,1724823061427,-976.28,0.00014794,2]
[336432224,1724823061437,-681.01,0.00014794,2]
[336432225,1724823061446,-6351.33,0.00014794,2]
[336432226,1724823061456,-1199.56,0.00014794,2]
[336432227,1724823061466,-640.43,0.00014794,2]
[336432228,1724823061477,-2948.06,0.00014794,2]
[336432229,1724823061487,-500.0,0.00014794,2]
[336432230,1724823061496,-1275.5,0.00014794,2]
[336432231,1724823061506,-542.67,0.00014794,2]
[336432232,1724823061516,-2577.61,0.00014794,2]
[336432233,1724823061526,-500.0,0.00014794,2]
[336432234,1724823061536,-1066.37,0.00014794,2]
[336432235,1724823061546,-1879.62,0.00014794,2]
[336432236,1724823061556,-879.97,0.00014794,2]
[336432237,1724823061566,-151.0,0.00015,2]
[336432238,1724823061576,-151.0,0.00015,2]
[336432239,1724823061585,-618.632193,0.00015,2]
[336432240,1724823061594,-618.632193,0.00015,2]
[336432241,1724823061604,-500.0,0.00015068,2]
[336432242,1724823061613,-193.82,0.00015068,2]
[336432243,1724823061623,-465.71,0.00015068,2]
[336432244,1724823061632,-1073.08,0.00015068,2]
[336432245,1724823061642,-500.0,0.00015068,2]
[336432246,1724823061651,-976.28,0.00015068,2]
[336432247,1724823061661,-681.01,0.00015068,2]
[336432248,1724823061671,-6351.33,0.00015068,2]
[336432249,1724823061680,-1199.56,0.00015068,2]
[336432250,1724823061690,-640.43,0.00015068,2]
[336432251,1724823061700,-2948.06,0.00015068,2]
[336432252,1724823061710,-531.73,0.00015068,2]
[336432253,1724823061719,-1275.5,0.00015068,2]
[336432254,1724823061740,-542.67,0.00015068,2]
[336432255,1724823061749,-2577.61,0.00015068,2]
[336432256,1724823061759,-419.9,0.00015068,2]
[336432257,1724823061768,-1066.37,0.00015068,2]
[336432258,1724823061777,-1879.62,0.00015068,2]
[336432259,1724823061787,-879.97,0.00015068,2]
[336432260,1724823061796,-370.81,0.00015342,2]
[336432261,1724823061805,-1073.08,0.00015342,2]
[336432262,1724823061814,-500.06,0.00015342,2]
[336432263,1724823061823,-976.28,0.00015342,2]
[336432264,1724823061833,-681.01,0.00015342,2]
[336432265,1724823061842,-6351.33,0.00015342,2]
[336432266,1724823061858,-1199.56,0.00015342,2]
[336432267,1724823061867,-640.43,0.00015342,2]
[336432268,1724823061877,-2948.06,0.00015342,2]
[336432269,1724823061886,-1275.5,0.00015342,2]
[336432270,1724823061897,-542.67,0.00015342,2]
[336432271,1724823061907,-2577.61,0.00015342,2]
[336432272,1724823061917,-1066.37,0.00015342,2]
[336432273,1724823061928,-1879.62,0.00015342,2]
[336432274,1724823061937,-879.97,0.00015342,2]
[336432275,1724823061946,-5591.6970956,0.00015377,2]
[336432276,1724823061955,-1073.08,0.00015616,2]
[336432277,1724823061964,-976.28,0.00015616,2]
[336432278,1724823061975,-681.01,0.00015616,2]
[336432279,1724823061984,-6351.33,0.00015616,2]
[336432280,1724823061994,-1199.56,0.00015616,2]
[336432281,1724823062003,-640.43,0.00015616,2]
[336432282,1724823062013,-2948.06,0.00015616,2]
[336432283,1724823062023,-1275.5,0.00015616,2]
[336432284,1724823062032,-542.67,0.00015616,2]
[336432285,1724823062042,-2577.61,0.00015616,2]
[336432286,1724823062053,-1066.37,0.00015616,2]
[336432287,1724823062063,-1879.62,0.00015616,2]
[336432288,1724823062073,-879.97,0.00015616,2]
[336432289,1724823062085,-5591.6970956,0.00015643,2]
[336432290,1724823062094,-3216.003,0.0001583,2]
[336432291,1724823062103,-1073.08,0.0001589,2]
[336432292,1724823062113,-976.28,0.0001589,2]
[336432293,1724823062123,-681.01,0.0001589,2]
[336432294,1724823062133,-6351.33,0.0001589,2]
[336432295,1724823062142,-1199.56,0.0001589,2]
[336432296,1724823062152,-640.43,0.0001589,2]
[336432297,1724823062162,-2948.06,0.0001589,2]
[336432298,1724823062172,-1275.5,0.0001589,2]
[336432299,1724823062181,-542.67,0.0001589,2]
[336432300,1724823062191,-2577.61,0.0001589,2]
[336432301,1724823062200,-1066.37,0.0001589,2]
[336432302,1724823062210,-1879.62,0.0001589,2]
[336432303,1724823062219,-879.97,0.0001589,2]
[336432304,1724823062230,-150.0,0.00015932,2]
[336432305,1724823062240,-522.0,0.00015932,2]
[336432306,1724823062249,-1126.2,0.00016,30]
[336432307,1724823062259,-5591.6970956,0.00016142,2]
[336432308,1724823062268,-1073.08,0.00016164,2]
[336432309,1724823062278,-976.28,0.00016164,2]
[336432310,1724823062287,-681.01,0.00016164,2]
[336432311,1724823062297,-6351.33,0.00016164,2]
[336432312,1724823062307,-1199.56,0.00016164,2]
[336432313,1724823062318,-640.43,0.00016164,2]
[336432314,1724823062327,-2948.06,0.00016164,2]
[336432315,1724823062336,-1275.5,0.00016164,2]
[336432316,1724823062347,-542.67,0.00016164,2]
[336432317,1724823062356,-2577.61,0.00016164,2]
[336432318,1724823062366,-1066.37,0.00016164,2]
[336432319,1724823062376,-1879.62,0.00016164,2]
[336432320,1724823062386,-879.97,0.00016164,2]
[336432321,1724823062396,-5591.6970956,0.00016415,2]
[336432322,1724823062405,-151.0,0.00016438,2]
[336432323,1724823062414,-712.846096,0.00016438,2]
[336432324,1724823062423,-712.846096,0.00016438,2]
[336432325,1724823062432,-151.0,0.00016438,2]
[336432326,1724823062442,-152.977133,0.00016438,2]
[336432327,1724823062451,-261.900795,0.00016438,2]
[336432328,1724823062460,-261.900795,0.00016438,2]
[336432329,1724823062469,-1073.08,0.00016438,2]
[336432330,1724823062480,-151.0,0.00016438,2]
[336432331,1724823062490,-151.0,0.00016438,2]
[336432332,1724823062499,-343.773852,0.00016438,2]
[336432333,1724823062509,-976.28,0.00016438,2]
[336432334,1724823062520,-681.01,0.00016438,2]
[336432335,1724823062529,-343.773852,0.00016438,2]
[336432336,1724823062539,-151.0,0.00016438,2]
[336432337,1724823062549,-6351.33,0.00016438,2]
[336432338,1724823062559,-1199.56,0.00016438,2]
[336432339,1724823062568,-640.43,0.00016438,2]
[336432340,1724823062578,-2948.06,0.00016438,2]
[336432341,1724823062588,-255.947324,0.00016438,2]
[336432342,1724823062598,-255.947324,0.00016438,2]
[336432343,1724823062607,-331.004609,0.00016438,2]
[336432344,1724823062617,-453.006985,0.00016438,2]
[336432345,1724823062626,-331.004609,0.00016438,2]
[336432346,1724823062635,-453.006985,0.00016438,2]
[336432347,1724823062645,-151.0,0.00016438,2]
[336432348,1724823062654,-598.574737,0.00016438,2]
[336432349,1724823062663,-151.0,0.00016438,2]
[336432350,1724823062673,-598.574737,0.00016438,2]
[336432351,1724823062682,-151.0,0.00016438,2]
[336432352,1724823062691,-151.0,0.00016438,2]
[336432353,1724823062701,-206.519982,0.00016438,2]
[336432354,1724823062711,-176.600374,0.00016438,2]
[336432355,1724823062721,-168.285319,0.00016438,2]
[336432356,1724823062732,-1275.5,0.00016438,2]
[336432357,1724823062741,-176.600374,0.00016438,2]
[336432358,1724823062751,-168.285319,0.00016438,2]
[336432359,1724823062760,-576.503359,0.00016438,2]
[336432360,1724823062769,-576.503359,0.00016438,2]
[336432361,1724823062779,-542.67,0.00016438,2]
[336432362,1724823062788,-269.912312,0.00016438,2]
[336432363,1724823062798,-269.912312,0.00016438,2]
[336432364,1724823062807,-773.082119,0.00016438,2]
[336432365,1724823062816,-383.375211,0.00016438,2]
[336432366,1724823062826,-773.082119,0.00016438,2]
[336432367,1724823062835,-383.375211,0.00016438,2]
[336432368,1724823062845,-2577.61,0.00016438,2]
[336432369,1724823062859,-151.0,0.00016438,2]
[336432370,1724823062868,-151.0,0.00016438,2]
[336432371,1724823062878,-1066.37,0.00016438,2]
[336432372,1724823062888,-1879.62,0.00016438,2]
[336432373,1724823062898,-879.97,0.00016438,2]
[336432374,1724823062908,-5591.6970956,0.00016672,2]
[336432375,1724823062918,-1490.40798,0.00016712,2]
[336432376,1724823062928,-1490.40798,0.00016712,2]
[336432377,1724823062937,-151.0,0.00016712,2]
[336432378,1724823062946,-151.0,0.00016712,2]
[336432379,1724823062955,-151.0,0.00016712,2]
[336432380,1724823062964,-1073.08,0.00016712,2]
[336432381,1724823062974,-976.28,0.00016712,2]
[336432382,1724823062983,-681.01,0.00016712,2]
[336432383,1724823062992,-6351.33,0.00016712,2]
[336432384,1724823063002,-1199.56,0.00016712,2]
[336432385,1724823063012,-640.43,0.00016712,2]
[336432386,1724823063021,-2948.06,0.00016712,2]
[336432387,1724823063031,-1275.5,0.00016712,2]
[336432388,1724823063041,-542.67,0.00016712,2]
[336432389,1724823063051,-2577.61,0.00016712,2]
[336432390,1724823063061,-1066.37,0.00016712,2]
[336432391,1724823063071,-1879.62,0.00016712,2]
[336432392,1724823063080,-879.97,0.00016712,2]
[336432393,1724823063091,-5591.6970956,0.00016754,2]
[336432394,1724823063100,-151.0,0.00016812,2]
[336432395,1724823063109,-151.0,0.00016812,2]
[336432396,1724823063118,-252.163354,0.00016812,2]
[336432397,1724823063128,-252.163354,0.00016812,2]
[336432398,1724823063137,-446.527744,0.00016812,2]
[336432399,1724823063146,-446.527744,0.00016812,2]
[336432400,1724823063155,-3127.43486,0.00016812,2]
[336432401,1724823063165,-3127.43486,0.00016812,2]
[336432402,1724823063174,-588.081748,0.00016812,2]
[336432403,1724823063184,-588.081748,0.00016812,2]
[336432404,1724823063194,-726.647639,0.00016812,2]
[336432405,1724823063203,-726.647639,0.00016812,2]
[336432406,1724823063213,-904.1638,0.00016812,2]
[336432407,1724823063223,-904.1638,0.00016812,2]
[336432408,1724823063233,-151.0,0.00016884,2]
[336432409,1724823063242,-182.405385,0.00016884,2]
[336432410,1724823063251,-336.843282,0.00016884,2]
[336432411,1724823063261,-182.405385,0.00016884,2]
[336432412,1724823063270,-336.843282,0.00016884,2]
[336432413,1724823063280,-286.772387,0.00016884,2]
[336432414,1724823063289,-286.772387,0.00016884,2]
[336432415,1724823063299,-1073.08,0.00016986,2]
[336432416,1724823063309,-976.28,0.00016986,2]
[336432417,1724823063319,-681.01,0.00016986,2]
[336432418,1724823063329,-6351.33,0.00016986,2]
[336432419,1724823063338,-1199.56,0.00016986,2]
[336432420,1724823063347,-640.43,0.00016986,2]
[336432421,1724823063357,-2948.06,0.00016986,2]
[336432422,1724823063367,-1275.5,0.00016986,2]
[336432423,1724823063376,-542.67,0.00016986,2]
[336432424,1724823063386,-2577.61,0.00016986,2]
[336432425,1724823063396,-1066.37,0.00016986,2]
[336432426,1724823063407,-1879.62,0.00016986,2]
[336432427,1724823063416,-879.97,0.00016986,2]
[336432428,1724823063427,-5591.6970956,0.0001717,2]
[336432429,1724823063436,-1073.3,0.0001726,2]
[336432430,1724823063446,-976.35,0.0001726,2]
[336432431,1724823063456,-681.13,0.0001726,2]
[336432432,1724823063466,-6351.36,0.0001726,2]
[336432433,1724823063477,-1199.79606724,0.0001726,2]
[336432434,1724823063487,-640.53,0.0001726,2]
[336432435,1724823063497,-2948.09,0.0001726,2]
[336432436,1724823063507,-1275.58,0.0001726,2]
[336432437,1724823063516,-542.75,0.0001726,2]
[336432438,1724823063526,-2577.79,0.0001726,2]
[336432439,1724823063535,-1066.57,0.0001726,2]
[336432440,1724823063545,-1879.64,0.0001726,2]
[336432441,1724823063555,-880.01,0.0001726,2]
[336432442,1724823063565,-5591.6970956,0.00017265,2]
[336432443,1724823063575,-5591.6970956,0.00017676,2]
[336432444,1724823063585,-5591.6970956,0.00017972,2]
[336432445,1724823063594,-5591.6970956,0.00018308,2]
[336432446,1724823063604,-5591.6970956,0.00018569,2]
[336432447,1724823063614,-800.0,0.00018639,2]
[336432448,1724823063623,-500.0,0.00018654,2]
[336432449,1724823063633,-1900.0,0.00018698,2]
[336432450,1724823063642,-2200.0,0.00018757,2]
[336432451,1724823063652,-5591.6970956,0.00018767,2]
[336432452,1724823063661,-500.0,0.00018914,2]
[336432453,1724823063670,-150.0,0.00018932,2]
[336432454,1724823063680,-522.0,0.00018932,2]
[336432455,1724823063690,-190.0,0.00018966,2]
[336432456,1724823063699,-800.0,0.00019015,2]
[336432457,1724823063708,-500.0,0.00019102,2]
[336432458,1724823063717,-500.0,0.00019105,2]
[336432459,1724823063728,-500.0,0.00019141,2]
[336432460,1724823063738,-5591.6970956,0.00019144,2]
[336432461,1724823063747,-2200.0,0.00019169,2]
[336432462,1724823063756,-1600.0,0.00019171,2]
[336432463,1724823063766,-251.0,0.00019178,2]
[336432464,1724823063776,-241.82106656,0.0001918,2]
[336432465,1724823063785,-241.82106656,0.0001918,2]
[336432466,1724823063795,-241.82106656,0.0001918,2]
[336432467,1724823063804,-241.82106656,0.0001918,2]
[336432468,1724823063815,-241.82106656,0.0001918,2]
[336432469,1724823063825,-241.82106656,0.0001918,2]
[336432470,1724823063835,-241.82106656,0.0001918,2]
[336432471,1724823063845,-241.82106656,0.0001918,2]
[336432472,1724823063861,-241.82106656,0.0001918,2]
[336432473,1724823063871,-241.82106656,0.0001918,2]
[336432474,1724823063880,-241.82106656,0.0001918,2]
[336432475,1724823063891,-241.82106656,0.0001918,2]
[336432476,1724823063902,-241.82106656,0.0001918,2]
[336432477,1724823063911,-241.82106656,0.0001918,2]
[336432478,1724823063921,-241.82106656,0.0001918,2]
[336432479,1724823063930,-241.82106656,0.0001918,2]
[336432480,1724823063941,-241.82106656,0.0001918,2]
[336432481,1724823063951,-241.82106656,0.0001918,2]
[336432482,1724823063960,-241.82106656,0.0001918,2]
[336432483,1724823063971,-242.32,0.0001918,2]
[336432484,1724823063982,-153.38504374,0.0001918,2]
[336432485,1724823063992,-153.38504374,0.0001918,2]
[336432486,1724823064001,-153.38504374,0.0001918,2]
[336432487,1724823064012,-153.38504374,0.0001918,2]
[336432488,1724823064022,-153.38504374,0.0001918,2]
[336432489,1724823064032,-153.38504374,0.0001918,2]
[336432490,1724823064041,-153.38504374,0.0001918,2]
[336432491,1724823064051,-153.38504374,0.0001918,2]
[336432492,1724823064061,-153.38504374,0.0001918,2]
[336432493,1724823064070,-153.38504374,0.0001918,2]
[336432494,1724823064080,-153.38504374,0.0001918,2]
[336432495,1724823064090,-153.38504374,0.0001918,2]
[336432496,1724823064100,-153.38504374,0.0001918,2]
[336432497,1724823064110,-153.38504374,0.0001918,2]
[336432498,1724823064119,-153.38504374,0.0001918,2]
[336432499,1724823064129,-153.38504374,0.0001918,2]
[336432500,1724823064139,-153.38504374,0.0001918,2]
[336432501,1724823064148,-153.38504374,0.0001918,2]
[336432502,1724823064158,-153.38504374,0.0001918,2]
[336432503,1724823064167,-153.88,0.0001918,2]
[336432504,1724823064177,-500.0,0.00019249,2]
[336432505,1724823064186,-1900.0,0.00019297,2]
[336432506,1724823064196,-5591.6970956,0.00019321,2]
[336432507,1724823064205,-623.94489,0.00019409,2]
[336432508,1724823064214,-500.0,0.00019428,2]
[336432509,1724823064224,-1900.0,0.00019518,2]
[336432510,1724823064234,-2200.0,0.00019534,2]
[336432511,1724823064243,-800.0,0.00019538,2]
[336432512,1724823064252,-500.0,0.00019649,2]
[336432513,1724823064262,-5591.6970956,0.00019664,2]
[336432514,1724823064272,-500.0,0.00019719,2]
[336432515,1724823064281,-800.0,0.00019732,2]
[336432516,1724823064291,-2200.0,0.00019745,2]
[336432517,1724823064301,-5591.6970956,0.00019806,2]
[336432518,1724823064310,-800.0,0.00019852,2]
[336432519,1724823064320,-20806.3048966,0.00019863,2]
[336432520,1724823064330,-20806.3048966,0.00019863,2]
[336432521,1724823064340,-1900.0,0.00019909,2]
[336432522,1724823064468,-800.0,0.0001995,2]
[336432523,1724823064487,-1900.0,0.0001997,2]
[336432524,1724823064497,-2200.0,0.00019971,2]
[336432525,1724823064508,-19863.43740843,0.00019974,2]
[336432526,1724823064518,-19863.43740843,0.00019974,2]
[336432527,1724823064529,-44460.0052816,0.0001999,2]
[336432528,1724823064539,-21113.3683988,0.0002,2]
[336432529,1724823064549,-166.76606505,0.0002,2]
[336432530,1724823064558,-154.54409492,0.0002,2]
[336432531,1724823064568,-20192.28361855,0.0002,2]
[336432532,1724823064578,-360.97746608,0.0002,2]
[336432533,1724823064587,-12900.0,0.0002,2]
[336432534,1724823064597,-182.5,0.0002,2]
[336432535,1724823064607,-500.0,0.0002,2]
[336432536,1724823064617,-506.0,0.0002,2]
[336432537,1724823064627,-506.0,0.0002,2]
[336432538,1724823064637,-2374.9667294,0.0002,2]
[336432539,1724823064898,-167.5,0.00010958,2]
[336432540,1724823064908,-233.18437804,0.00010958,2]
[336432541,1724823064917,-538.01,0.00010958,2]
[336432542,1724823064930,-500.0,0.00010958,2]
[336432543,1724823064940,-501.58574082,0.00010958,2]
[336432544,1724823064950,-500.0,0.00012876,2]
[336432545,1724823064960,-628.54683572,0.0001315,2]
[336432546,1724823064970,-716.58,0.0001452,2]
[336432547,1724823064984,-716.58,0.00014794,2]
[336432548,1724823064993,-716.58,0.00015068,2]
[336432549,1724823065003,-716.58,0.00015342,2]
[336432550,1724823065012,-716.58,0.00015616,2]
[336432551,1724823065021,-716.58,0.0001589,2]